fUST/lending_fUST_20241014
["ID","MTS","AMOUNT","RATE_DAILY","PERIOD"]
[340235799,1728888659673,-2017.69,0.00030136,2]
[340235800,1728888659683,-500.0,0.00030136,2]
[340235801,1728888659692,-545.86,0.00030136,2]
[340235802,1728888659702,-500.0,0.00030137,2]
[340235803,1728888659712,-2458.04043,0.00030137,7]
[340235804,1728888659721,-2458.04043,0.00030137,7]
[340235805,1728888659731,-2458.04043,0.00030137,7]
[340235806,1728888659741,-2458.04043,0.00030137,7]
[340235807,1728888659751,-2458.04043,0.00030137,7]
[340235808,1728888659760,-2458.04043,0.00030137,7]
[340235809,1728888659770,-2458.04043,0.00030137,7]
[340235810,1728888659780,-2458.04043,0.00030137,7]
[340235811,1728888659790,-2458.04043,0.00030137,7]
[340235812,1728888659800,-2458.04043,0.00030137,7]
[340235813,1728888659810,-2458.04043,0.00030137,7]
[340235814,1728888659819,-2458.04043,0.00030137,7]
[340235815,1728888659828,-2458.04043,0.00030137,7]
[340235816,1728888659838,-2458.04043,0.00030137,7]
[340235817,1728888659847,-2458.04043,0.00030137,7]
[340235818,1728888659856,-2458.04043,0.00030137,7]
[340235819,1728888659866,-2458.04043,0.00030137,7]
[340235820,1728888659876,-2458.04043,0.00030137,7]
[340235821,1728888659886,-2458.04043,0.00030137,7]
[340235822,1728888659899,-2458.040422,0.00030137,7]
[340235823,1728888659908,-950.0,0.00030156,5]
[340235824,1728888659921,-302.72757545,0.0003016,2]
[340235825,1728888659932,-302.72757545,0.0003016,2]
[340235826,1728888659943,-1000.0,0.000303,2]
[340235827,1728888659954,-1000.0,0.000303,2]
[340235828,1728888659966,-1000.0,0.000303,2]
[340235829,1728888659977,-152.0846918,0.00030377,7]
[340235830,1728888659989,-505.81219493,0.00030387,5]
[340235831,1728888659998,-2000.0,0.00030387,5]
[340235832,1728888660008,-851.16,0.0003041,2]
[340235833,1728888660018,-509.31,0.0003041,2]
[340235834,1728888660028,-1255.23,0.0003041,2]
[340235835,1728888660038,-1000.0,0.0003041,120]
[340235836,1728888660049,-7551.44,0.0003041,2]
[340235837,1728888660059,-1765.14,0.0003041,2]
[340235838,1728888660069,-778.33,0.0003041,2]
[340235839,1728888660080,-609.12,0.0003041,2]
[340235840,1728888660090,-4824.09,0.0003041,2]
[340235841,1728888660100,-5430.08,0.0003041,2]
[340235842,1728888660110,-2965.86,0.0003041,2]
[340235843,1728888660167,-30352.2,0.0003041,2]
[340235844,1728888660181,-1259.99,0.0003041,2]
[340235845,1728888660191,-500.0,0.0003041,2]
[340235846,1728888660201,-1377.9,0.0003041,2]
[340235847,1728888660211,-2017.69,0.0003041,2]
[340235848,1728888660221,-500.0,0.0003041,2]
[340235849,1728888660230,-545.86,0.0003041,2]
[340235850,1728888660240,-454.09136318,0.0003045,4]
[340235851,1728888660250,-454.09136318,0.0003045,4]
[340235852,1728888660260,-1500.0,0.00030496,2]
[340235853,1728888660270,-303.42706392,0.00030521,5]
[340235854,1728888660280,-186.9983685,0.0003065,2]
[340235855,1728888660289,-851.16,0.00030684,2]
[340235856,1728888660298,-509.31,0.00030684,2]
[340235857,1728888660307,-1255.23,0.00030684,2]
[340235858,1728888660316,-1000.0,0.00030684,120]
[340235859,1728888660327,-7551.44,0.00030684,2]
[340235860,1728888660337,-1765.14,0.00030684,2]
[340235861,1728888660347,-778.33,0.00030684,2]
[340235862,1728888660357,-609.12,0.00030684,2]
[340235863,1728888660367,-4824.09,0.00030684,2]
[340235864,1728888660378,-5430.08,0.00030684,2]
[340235865,1728888660390,-2965.86,0.00030684,2]
[340235866,1728888660400,-30352.2,0.00030684,2]
[340235867,1728888660409,-1259.99,0.00030684,2]
[340235868,1728888660419,-593.62,0.00030684,2]
[340235869,1728888660429,-1377.9,0.00030684,2]
[340235870,1728888660439,-2017.69,0.00030684,2]
[340235871,1728888660448,-465.98660972,0.00030684,2]
[340235872,1728888660458,-545.86,0.00030684,2]
[340235873,1728888660468,-800.04477732,0.00030687,5]
[340235874,1728888660478,-2000.0,0.00030687,5]
[340235875,1728888660487,-2000.0,0.00030687,5]
[340235876,1728888660498,-2000.0,0.00030687,5]
[340235877,1728888660508,-2118.69089615,0.00030687,5]
[340235878,1728888660518,-1050.0,0.00030704,5]
[340235879,1728888660528,-454.09136318,0.0003074,4]
[340235880,1728888660538,-454.09136318,0.0003074,4]
[340235881,1728888660549,-337.51623956,0.00030787,5]
[340235882,1728888660558,-163.0,0.0003081,2]
[340235883,1728888660568,-851.21920016,0.00030958,2]
[340235884,1728888660578,-509.35751701,0.00030958,2]
[340235885,1728888660587,-1255.45874154,0.00030958,2]
[340235886,1728888660596,-1000.0,0.00030958,120]
[340235887,1728888660606,-7551.53089225,0.00030958,2]
[340235888,1728888660615,-1765.15824005,0.00030958,2]
[340235889,1728888660625,-778.54892408,0.00030958,2]
[340235890,1728888660635,-609.12,0.00030958,2]
[340235891,1728888660646,-4824.30496793,0.00030958,2]
[340235892,1728888660655,-5430.26494202,0.00030958,2]
[340235893,1728888660665,-2965.99733662,0.00030958,2]
[340235894,1728888660674,-30352.20831551,0.00030958,2]
[340235895,1728888660684,-1260.05,0.00030958,2]
[340235896,1728888660693,-1377.959147,0.00030958,2]
[340235897,1728888660703,-2017.74059817,0.00030958,2]
[340235898,1728888660713,-545.86,0.00030958,2]
[340235899,1728888660722,-5000.0,0.00030972,7]
[340235900,1728888660731,-1000.0,0.00031,120]
[340235901,1728888660741,-1500.0,0.00031024,2]
[340235902,1728888660751,-454.09136318,0.0003103,4]
[340235903,1728888660760,-454.09136318,0.0003103,4]
[340235904,1728888660769,-163.0,0.00031068,2]
[340235905,1728888660779,-823.0,0.00031079,2]
[340235906,1728888660789,-1000.0,0.00031232,120]
[340235907,1728888660798,-1150.0,0.00031252,5]
[340235908,1728888660808,-2751.0,0.000313,14]
[340235909,1728888660817,-1563.41,0.000313,30]
[340235910,1728888660827,-7433.66,0.000313,30]
[340235911,1728888660836,-454.09136318,0.0003132,4]
[340235912,1728888660846,-454.09136318,0.0003132,4]
[340235913,1728888660855,-2000.0,0.00031487,5]
[340235914,1728888660864,-1000.0,0.00031506,120]
[340235915,1728888660874,-909.128743,0.00031506,2]
[340235916,1728888660883,-150.0,0.00031508,2]
[340235917,1728888660898,-526.0,0.00031508,2]
[340235918,1728888660907,-1157.0,0.00031508,2]
[340235919,1728888660919,-1060.0,0.00031508,2]
[340235920,1728888660929,-1294.39933121,0.00031523,2]
[340235921,1728888660938,-1500.0,0.00031552,2]
[340235922,1728888660948,-454.09136318,0.0003161,4]
[340235923,1728888660958,-454.09136318,0.0003161,4]
[340235924,1728888660968,-1709.01,0.000317,14]
[340235925,1728888660977,-1000.0,0.0003178,120]
[340235926,1728888660986,-1250.0,0.000318,5]
[340235927,1728888660997,-150.0,0.00031871,2]
[340235928,1728888661006,-12178.68697638,0.00031957,2]
[340235929,1728888661015,-200.0,0.00032,120]
[340235930,1728888661024,-376.22744544,0.00032,120]
[340235931,1728888661079,-500.0,0.00032,30]
[340235932,1728888661088,-500.0,0.00032,30]
[340235933,1728888661098,-500.0,0.00032,30]
[340235934,1728888661107,-500.0,0.00032,30]
[340235935,1728888661116,-500.0,0.00032,30]
[340235936,1728888661126,-500.0,0.00032,30]
[340235937,1728888661135,-500.0,0.00032,30]
[340235938,1728888661149,-500.0,0.00032,30]
[340235939,1728888661159,-500.0,0.00032,30]
[340235940,1728888661168,-500.0,0.00032,30]
[340235941,1728888661177,-500.0,0.00032,30]
[340235942,1728888661187,-500.0,0.00032,30]
[340235943,1728888661197,-500.0,0.00032,30]
[340235944,1728888661207,-500.0,0.00032,30]
[340235945,1728888661216,-500.0,0.00032,30]
[340235946,1728888661226,-500.0,0.00032,30]
[340235947,1728888661235,-190.0,0.00032,30]
[340235948,1728888661245,-500.0,0.00032,30]
[340235949,1728888661254,-505.60272747,0.00032,30]
[340235950,1728888661264,-855.03440733,0.00032,30]
[340235951,1728888661273,-500.0,0.00032,30]
[340235952,1728888661283,-500.0,0.00032,30]
[340235953,1728888661292,-510.30493421,0.00032,30]
[340235954,1728888661302,-343.43935024,0.00032,30]
[340235955,1728888661311,-500.0,0.00032,30]
[340235956,1728888661321,-500.0,0.00032,30]
[340235957,1728888661331,-500.0,0.00032,30]
[340235958,1728888661341,-500.0,0.00032,30]
[340235959,1728888661350,-500.0,0.00032,30]
[340235960,1728888661360,-500.0,0.00032,30]
[340235961,1728888661370,-500.0,0.00032,30]
[340235962,1728888661379,-500.0,0.00032,30]
[340235963,1728888661388,-500.0,0.00032,30]
[340235964,1728888661403,-500.0,0.00032,30]
[340235965,1728888661412,-500.0,0.00032,30]
[340235966,1728888661422,-500.0,0.00032,30]
[340235967,1728888661432,-506.60165072,0.00032,30]
[340235968,1728888661441,-500.0,0.00032,30]
[340235969,1728888661451,-500.0,0.00032,30]
[340235970,1728888661461,-500.0,0.00032,30]
[340235971,1728888661471,-500.0,0.00032,30]
[340235972,1728888661482,-500.0,0.00032,30]
[340235973,1728888661492,-500.0,0.00032,30]
[340235974,1728888661502,-1000.0,0.00032054,120]
[340235975,1728888661512,-1500.0,0.0003208,2]
[340235976,1728888661521,-1000.0,0.00032328,120]
[340235977,1728888661531,-539.82420449,0.00032348,5]
[340235978,1728888661540,-5000.0,0.0003239,38]
[340235979,1728888661550,-823.0,0.00032475,2]
[340235980,1728888661559,-1022.6076988,0.00032602,120]
[340235981,1728888661570,-1500.0,0.00032608,2]
[340235982,1728888661579,-163.0,0.00032622,2]
[340235983,1728888661589,-151.91212279,0.00032705,2]
[340235984,1728888661598,-1021.55,0.000328,30]
[340235985,1728888661607,-154.39,0.000328,31]
[340235986,1728888661617,-154.39,0.000328,31]
[340235987,1728888661626,-154.39,0.000328,31]
[340235988,1728888661636,-154.39,0.000328,31]
[340235989,1728888661647,-154.39,0.000328,31]
[340235990,1728888661657,-154.39,0.000328,31]
[340235991,1728888661667,-154.39,0.000328,31]
[340235992,1728888661678,-500.0,0.00032876,2]
[340235993,1728888661688,-1000.0,0.00032876,2]
[340235994,1728888661698,-1000.0,0.00032876,2]
[340235995,1728888661707,-1000.0,0.00032876,2]
[340235996,1728888661716,-1000.0,0.00032876,2]
[340235997,1728888661726,-1000.0,0.00032876,2]
[340235998,1728888661735,-654.15268788,0.00032876,2]
[340235999,1728888661745,-452.14497368,0.00032876,2]
[340236000,1728888661755,-188.10287723,0.00032876,2]
[340236001,1728888661765,-432.14010151,0.00032876,2]
[340236002,1728888661775,-388.20183506,0.00032876,2]
[340236003,1728888661786,-378.2307535,0.00032876,2]
[340236004,1728888661796,-436.6416047,0.00032876,2]
[340236005,1728888661806,-188.5349676,0.00032877,120]
[340236006,1728888661815,-150.0,0.00032877,5]
[340236007,1728888661824,-1937.49479016,0.00032978,5]
[340236008,1728888661834,-164.22412527,0.00032999,10]
[340236009,1728888661843,-16725.65591927,0.00033,2]
[340236010,1728888661852,-278.43614038,0.00033,30]
[340236011,1728888661905,-335800.53584899,0.00033,2]
[340236012,1728888661916,-1000.0,0.00033,120]
[340236013,1728888661929,-3106.0,0.00033,7]
[340236014,1728888661938,-21829.97415396,0.00033,2]
[340236015,1728888661949,-274.0,0.00033,2]
[340236016,1728888661960,-274.0,0.00033,2]
[340236017,1728888661970,-589.95099062,0.00033,7]
[340236018,1728888661980,-305.6904174,0.00033014,2]
[340236019,1728888661991,-1500.0,0.00033136,2]
[340236020,1728888662000,-1049.57793633,0.00033278,5]
[340236021,1728888662011,-1016.9255247,0.00033278,5]
[340236022,1728888662023,-2500.0,0.00033278,5]
[340236023,1728888662033,-1500.0,0.00033664,2]
[340236024,1728888662043,-428.0,0.00033666,120]
[340236025,1728888662054,-1152.0,0.00033689,2]
[340236026,1728888662065,-1709.01,0.000337,30]
[340236027,1728888662075,-1294.39933121,0.00033919,2]
[340236028,1728888662086,-3144.14405718,0.00034,120]
[340236029,1728888662095,-531.01807288,0.00034,5]
[340236030,1728888662104,-200.0,0.00034,120]
[340236031,1728888662114,-2500.0,0.00034078,5]
[340236032,1728888662123,-1500.0,0.00034192,2]
[340236033,1728888662133,-150.0,0.00034508,2]
[340236034,1728888662144,-526.0,0.00034508,2]
[340236035,1728888662154,-1157.0,0.00034508,2]
[340236036,1728888662164,-1060.0,0.00034508,2]
[340236037,1728888662174,-1500.0,0.0003472,2]
[340236038,1728888662184,-150.0,0.00034871,2]
[340236039,1728888662193,-10451.41107019,0.00035,2]
[340236040,1728888662203,-304.39,0.00035,20]
[340236041,1728888662212,-2130.88150488,0.00035,2]
[340236042,1728888662222,-54097.99381671,0.00035,7]
[340236043,1728888662231,-1406.0,0.00035,7]
[340236044,1728888662240,-1000.0,0.00035,120]
[340236045,1728888662250,-1868.84668222,0.00035,2]
[340236046,1728888662260,-160.0,0.00035,2]
[340236047,1728888662269,-1500.0,0.00035248,2]
[340236048,1728888662284,-500.0,0.00035616,7]
[340236049,1728888662303,-244.12621477,0.00035616,7]
[340236050,1728888662319,-180.61206006,0.00035616,2]
[340236051,1728888662338,-3183.21,0.00035616,10]
[340236052,1728888662358,-1152.0,0.00035723,2]
[340236053,1728888662375,-433.114449,0.00035746,2]
[340236054,1728888662393,-1500.0,0.00035776,2]
[340236055,1728888662407,-16079.54714309,0.00035988,2]
[340236056,1728888662423,-37000.0,0.00036,120]
[340236057,1728888662444,-531.39434,0.00036,120]
[340236058,1728888662458,-27781.69145797,0.00036,30]
[340236059,1728888662475,-200.0,0.00036,120]
[340236060,1728888662491,-500.0,0.00036,30]
[340236061,1728888662509,-274.0,0.00036,2]
[340236062,1728888662525,-274.0,0.00036,2]
[340236063,1728888662538,-274.0,0.00036,2]
[340236064,1728888662554,-3000.0,0.00036073,5]
[340236065,1728888662569,-6457.45,0.000361,30]
[340236066,1728888662583,-1318.7,0.000361,30]
[340236067,1728888662596,-2211.23,0.000361,30]
[340236068,1728888662610,-259.66528478,0.0003624,2]
[340236069,1728888662625,-1500.0,0.00036304,2]
[340236070,1728888662640,-1294.39933121,0.00036315,2]
[340236071,1728888662654,-7433.66,0.000364,30]
[340236072,1728888662669,-1709.01,0.000365,30]
[340236073,1728888662683,-1613.0,0.00036519,2]
[340236074,1728888662696,-2751.0,0.000366,30]
[340236075,1728888662711,-1563.41,0.000366,30]
[340236076,1728888662724,-1021.0,0.00036666,120]
[340236077,1728888662738,-3870.5015167,0.000368,60]
[340236078,1728888662752,-1500.0,0.00036832,2]
[340236079,1728888662765,-1064.05540203,0.00036873,5]
[340236080,1728888662779,-1000.0,0.00037,120]
[340236081,1728888662792,-202062.41675974,0.00037,120]
[340236082,1728888662806,-718067.85,0.00037135,30]
[340236083,1728888662821,-1500.0,0.0003736,2]
[340236084,1728888662837,-10000.0,0.000374,3]
[340236085,1728888662911,-6457.45,0.000375,30]
[340236086,1728888662925,-150.0,0.00037508,2]
[340236087,1728888662935,-526.0,0.00037508,2]
[340236088,1728888662948,-1157.0,0.00037508,2]
[340236089,1728888662959,-1060.0,0.00037508,2]
[340236090,1728888662969,-150.0,0.00037871,2]
[340236091,1728888662981,-1500.0,0.00037888,2]
[340236092,1728888662993,-35000.0,0.00038,2]
[340236093,1728888663002,-200.0,0.00038,120]
[340236094,1728888663012,-1155.28489919,0.00038,2]
[340236095,1728888663021,-7433.66,0.00038,30]
[340236096,1728888663031,-1332.001332,0.00038,7]
[340236097,1728888663040,-501.55902757,0.00038356,14]
[340236098,1728888663050,-2751.0,0.000384,30]
[340236099,1728888663059,-1563.41,0.000384,30]
[340236100,1728888663069,-1500.0,0.00038416,2]
[340236101,1728888663079,-3381.63300256,0.00038664,63]
[340236102,1728888663088,-1855.08066967,0.00038664,68]
[340236103,1728888663098,-1294.39933121,0.00038711,2]
[340236104,1728888663107,-3000.0,0.000389,120]
[340236105,1728888663117,-1709.01,0.000389,30]
[340236106,1728888663126,-1500.0,0.00038944,2]
[340236107,1728888663135,-1000.0,0.00038993,3]
[340236108,1728888663147,-26082.95271856,0.00039,2]
[340236109,1728888663156,-2000.0,0.00039,7]
[340236110,1728888663165,-7751.75743912,0.00039,2]
[340236111,1728888663175,-213209.57666213,0.00039,60]
[340236112,1728888663185,-1000.0,0.00039,120]
[340236113,1728888663194,-274.0,0.00039,2]
[340236114,1728888663203,-274.0,0.00039,2]
[340236115,1728888663212,-274.0,0.00039,2]
[340236116,1728888663221,-3500.0,0.00039042,5]
[340236117,1728888663234,-1613.0,0.00039295,30]
[340236118,1728888663243,-799.24830255,0.00039472,2]
[340236119,1728888663252,-2258.0,0.00039587,5]
[340236120,1728888663262,-413.3271816,0.00039877,2]
[340236121,1728888663271,-888.63650717,0.0003999,120]
[340236122,1728888663280,-176.12659665,0.0004,120]
[340236123,1728888663290,-9411.34675388,0.0004,10]
[340236124,1728888663299,-150.0,0.0004,120]
[340236125,1728888663308,-39800.0,0.0004,120]
[340236126,1728888663318,-350.0,0.0004,120]
[340236127,1728888663326,-6126.37294773,0.0004,2]
[340236128,1728888663336,-733.0179981,0.0004,120]
[340236129,1728888663345,-15475.0,0.0004,2]
[340236130,1728888663355,-150.8655135,0.0004,2]
[340236131,1728888663364,-150.0,0.0004015,120]
[340236132,1728888663374,-200.0,0.000402,6]
[340236133,1728888663383,-1000.0,0.00040207,7]
[340236134,1728888663394,-1453.09236218,0.0004028,11]
[340236135,1728888663404,-154.39,0.000405,31]
[340236136,1728888663413,-154.39,0.000405,31]
[340236137,1728888663422,-154.39,0.000405,31]
[340236138,1728888663431,-154.39,0.000405,31]
[340236139,1728888663441,-154.39,0.000405,31]
[340236140,1728888663450,-154.39,0.000405,31]
[340236141,1728888663459,-154.39,0.000405,31]
[340236142,1728888663469,-154.39,0.000405,31]
[340236143,1728888663478,-154.39,0.000405,31]
[340236144,1728888663487,-154.39,0.000405,31]
[340236145,1728888663496,-154.39,0.000405,31]
[340236146,1728888663506,-154.39,0.000405,31]
[340236147,1728888663516,-154.39,0.000405,31]
[340236148,1728888663525,-154.39,0.000405,31]
[340236149,1728888663534,-150.0,0.00040508,2]
[340236150,1728888663544,-526.0,0.00040508,2]
[340236151,1728888663554,-1157.0,0.00040508,2]
[340236152,1728888663563,-1060.0,0.00040508,2]
[340236153,1728888663573,-113901.44500408,0.00040775,5]
[340236154,1728888663583,-15332.63501493,0.00040775,2]
[340236155,1728888663592,-1519.4078853,0.00040775,2]
[340236156,1728888663602,-20849.2726438,0.00040775,2]
[340236157,1728888663611,-437.80486553,0.00040775,2]
[340236158,1728888663621,-223.63120349,0.00040775,2]
[340236159,1728888663630,-1020.07136658,0.00040775,2]
[340236160,1728888663639,-122087.23174445,0.00040775,2]
[340236161,1728888663648,-12845.81160343,0.00040775,10]
[340236162,1728888663658,-5498.71572989,0.00040775,5]
[340236163,1728888663667,-888847.68081176,0.00040775,20]
[340236164,1728888663676,-294.30033699,0.00040775,3]
[340236165,1728888663686,-394.70909042,0.00040775,2]
[340236166,1728888663695,-558.92035194,0.00040775,2]
[340236167,1728888663704,-717.0402462,0.00040775,32]
[340236168,1728888663713,-38002.03823086,0.00040775,2]
[340236169,1728888663723,-163.60584509,0.00040775,2]
[340236170,1728888663733,-4129.16111056,0.00040775,2]
[340236171,1728888663742,-10118.01787185,0.00040775,2]
[340236172,1728888663752,-9850.86431347,0.00040775,2]
[340236173,1728888663761,-1169.58327814,0.00040775,2]
[340236174,1728888663817,-154.60492477,0.00040775,2]
[340236175,1728888663827,-173.99676069,0.00040775,2]
[340236176,1728888663836,-149.91574163,0.00040775,4]
[340236177,1728888663845,-189.91965295,0.00040775,2]
[340236178,1728888663855,-3553.0677807,0.00040775,2]
[340236179,1728888663865,-2010.2963847,0.00040775,5]
[340236180,1728888663875,-150339.26214945,0.00040775,20]
[340236181,1728888663884,-197668.91843143,0.00040775,120]
[340236182,1728888663895,-1000.0,0.00040775,120]
[340236183,1728888663905,-1000.0,0.00040775,120]
[340236184,1728888663916,-2508.11411142,0.00040775,2]
[340236185,1728888663926,-515.09696888,0.00040775,2]
[340236186,1728888663936,-291.50754957,0.00040775,2]
[340236187,1728888663945,-4082.90292238,0.00040775,2]
[340236188,1728888663955,-953.76270313,0.00040775,35]
[340236189,1728888663965,-8440.46221352,0.00040775,60]
[340236190,1728888663975,-1500.0,0.00040775,2]
[340236191,1728888663984,-260000.0,0.00040775,39]
[340236192,1728888663995,-1400.0,0.00040775,39]
[340236193,1728888664005,-85500.0,0.00040775,38]
[340236194,1728888664014,-354.25297762,0.00040775,2]
[340236195,1728888664023,-425938.3293436,0.00040775,7]
[340236196,1728888664034,-6197.51351825,0.00040775,7]
[340236197,1728888664043,-86939.11443104,0.00040775,7]
[340236198,1728888664053,-2964.51203131,0.00040775,7]
[340236199,1728888664062,-498.0,0.00040775,7]
[340236200,1728888664071,-50582.58173822,0.00040775,120]
[340236201,1728888664080,-44282.88480632,0.00040775,35]
[340236202,1728888664089,-20239.17415042,0.00040775,10]
[340236203,1728888664100,-2308.40032094,0.00040775,120]
[340236204,1728888664109,-1586.89,0.00040775,120]
[340236205,1728888664118,-385.580364,0.00040775,120]
[340236206,1728888664128,-934.62846352,0.00040775,35]
[340236207,1728888664137,-1300.4079746,0.00040775,30]
[340236208,1728888664147,-823.36020149,0.00040775,30]
[340236209,1728888664156,-251.70388908,0.00040775,30]
[340236210,1728888664165,-1970.87950053,0.00040775,10]
[340236211,1728888664174,-5000.0,0.00040775,7]
[340236212,1728888664183,-100073.71309372,0.00040775,20]
[340236213,1728888664193,-1004.72,0.00040775,120]
[340236214,1728888664202,-211.63953571,0.00040775,3]
[340236215,1728888664211,-5261.6683099,0.00040775,90]
[340236216,1728888664222,-1256.21823548,0.00040775,120]
[340236217,1728888664231,-13936.36034762,0.00040775,7]
[340236218,1728888664240,-78686.50281979,0.00040775,5]
[340236219,1728888664250,-38318.10021539,0.00040775,5]
[340236220,1728888664260,-1691.0,0.00040775,5]
[340236221,1728888664269,-16911.71233297,0.00040775,20]
[340236222,1728888664278,-3000.0,0.00040775,119]
[340236223,1728888664287,-3000.0,0.00040775,57]
[340236224,1728888664298,-150.0,0.00040775,120]
[340236225,1728888664307,-150.0,0.00040871,2]
[340236226,1728888664316,-3331.7245704,0.00041,30]
[340236227,1728888664326,-10000.0,0.00041,120]
[340236228,1728888664335,-2000.0,0.00041,120]
[340236229,1728888664344,-2000.0,0.00041,120]
[340236230,1728888664354,-156.1,0.00041041,31]
[340236231,1728888664364,-151.0,0.00041096,120]
[340236232,1728888664374,-151.0,0.00041096,120]
[340236233,1728888664383,-151.0,0.00041096,120]
[340236234,1728888664394,-151.0,0.00041096,120]
[340236235,1728888664403,-151.0,0.00041096,120]
[340236236,1728888664412,-151.0,0.00041096,120]
[340236237,1728888664422,-151.0,0.00041096,120]
[340236238,1728888664432,-151.0,0.00041096,120]
[340236239,1728888664443,-151.0,0.00041096,120]
[340236240,1728888664452,-151.0,0.00041096,120]
[340236241,1728888664461,-151.0,0.00041096,120]
[340236242,1728888664470,-151.0,0.00041096,120]
[340236243,1728888664479,-151.0,0.00041096,120]
[340236244,1728888664488,-151.0,0.00041096,120]
[340236245,1728888664497,-151.0,0.00041096,120]
[340236246,1728888664507,-151.0,0.00041096,120]
[340236247,1728888664518,-234.863237,0.00041096,120]
[340236248,1728888664529,-180.5419505,0.00041096,2]
[340236249,1728888664540,-8135.84,0.00041096,60]
[340236250,1728888664550,-553.93909221,0.00041096,31]
[340236251,1728888664560,-1294.39933121,0.00041108,2]
[340236252,1728888664569,-210.2404033,0.00041544,30]
[340236253,1728888664579,-433.114449,0.00041701,120]
[340236254,1728888664588,-1000.0,0.00041775,2]
[340236255,1728888664598,-2114.994812,0.00041775,4]
[340236256,1728888664652,-5000.0,0.00041943,30]
[340236257,1728888664662,-43209.04743822,0.00042,30]
[340236258,1728888664671,-150.0,0.00042,120]
[340236259,1728888664680,-500.0,0.00042,120]
[340236260,1728888664689,-128707.44916175,0.00042,10]
[340236261,1728888664698,-10000.0,0.00042,120]
[340236262,1728888664707,-274.0,0.00042,2]
[340236263,1728888664717,-274.0,0.00042,2]
[340236264,1728888664726,-1322.01711824,0.00042164,7]
[340236265,1728888664736,-4400.88,0.000424,7]
[340236266,1728888664745,-528.46005263,0.000425,120]
[340236267,1728888664754,-1453.09236218,0.0004256,11]
[340236268,1728888664763,-150.0,0.000429,2]
[340236269,1728888664772,-3162.0,0.00042912,5]
[340236270,1728888664782,-389.97032016,0.00043,120]
[340236271,1728888664791,-324.61320626,0.00043,120]
[340236272,1728888664801,-2258.0,0.00043224,30]
[340236273,1728888664812,-1294.39933121,0.00043504,2]
[340236274,1728888664822,-526.0,0.00043508,2]
[340236275,1728888664832,-1157.0,0.00043508,2]
[340236276,1728888664842,-1060.0,0.00043508,2]
[340236277,1728888664851,-1512.28756845,0.000436,60]
[340236278,1728888664861,-76667.0,0.00043666,120]
[340236279,1728888664872,-500.0,0.00043835,120]
[340236280,1728888664883,-507.63498273,0.00043835,120]
[340236281,1728888664895,-150.0,0.00044,120]
[340236282,1728888664905,-197.62760117,0.00044,5]
[340236283,1728888664915,-377.0,0.00044,60]
[340236284,1728888664927,-150.0,0.00044515,120]
[340236285,1728888664936,-170.77753592,0.000447,120]
[340236286,1728888664946,-1574.18339237,0.0004484,15]
[340236287,1728888664955,-8000.0,0.000449,10]
[340236288,1728888664966,-154.41383337,0.00044923,54]
[340236289,1728888664975,-150.65592189,0.00045,120]
[340236290,1728888664984,-500.0,0.00045,14]
[340236291,1728888664995,-500.0,0.00045,14]
[340236292,1728888665004,-500.0,0.00045,14]
[340236293,1728888665014,-500.0,0.00045,14]
[340236294,1728888665023,-500.0,0.00045,14]
[340236295,1728888665032,-169.55014996,0.00045,120]
[340236296,1728888665041,-14509.0,0.00045,30]
[340236297,1728888665050,-1063.78806394,0.00045,120]
[340236298,1728888665060,-28622.83419187,0.00045,120]